fUSD/lending_fUSD_20260620
["ID","MTS","AMOUNT","RATE_DAILY","PERIOD"]
[425785282,1781888303000,-809.71,0.00036821,30]
[425785275,1781888303000,-769.14,0.00036821,30]
[425785297,1781888303000,-627.51,0.00036821,30]
[425785304,1781888303000,-337.51411357,0.00036821,30]
[425785305,1781888303000,-634.83,0.00036821,30]
[425785311,1781888303000,-577.97,0.00036821,30]
[425785310,1781888303000,-2492.23,0.00036821,30]
[425785313,1781888303000,-574.37,0.00036821,30]
[425785312,1781888303000,-1013.66,0.00036821,30]
[425785314,1781888303000,-1109.66,0.00036821,30]
[425785307,1781888303000,-780.74,0.00036821,30]
[425785315,1781888303000,-2528.15,0.00036821,30]
[425785316,1781888303000,-695.27,0.00036821,30]
[425785323,1781888303000,-900.24,0.00036821,30]
[425785318,1781888303000,-1182.85,0.00036821,30]
[425785322,1781888303000,-918.47,0.00036821,30]
[425785319,1781888303000,-620.19,0.00036821,30]
[425785324,1781888303000,-636.4,0.00036821,30]
[425785287,1781888303000,-674.8,0.00036821,30]
[425785317,1781888303000,-636.13,0.00036821,30]
[425785306,1781888303000,-594.02,0.00036821,30]
[425785320,1781888303000,-628.07,0.00036821,30]
[425785301,1781888303000,-664.75,0.00036821,30]
[425785286,1781888303000,-1017.11,0.00036821,30]
[425785302,1781888303000,-537.97,0.00036821,30]
[425785292,1781888303000,-662.39,0.00036821,30]
[425785296,1781888303000,-759.52,0.00036821,30]
[425785293,1781888303000,-1286.29,0.00036821,30]
[425785295,1781888303000,-507.51,0.00036821,30]
[425785288,1781888303000,-588.74,0.00036821,30]
[425785294,1781888303000,-833.48,0.00036821,30]
[425785291,1781888303000,-1338.57,0.00036821,30]
[425785289,1781888303000,-996.41,0.00036821,30]
[425785290,1781888303000,-517.19,0.00036821,30]
[425785298,1781888303000,-544.23,0.00036821,30]
[425785300,1781888303000,-1348.31,0.00036821,30]
[425785308,1781888303000,-743.84,0.00036821,30]
[425785303,1781888303000,-1145.24,0.00036821,30]
[425785321,1781888303000,-722.6,0.00036821,30]
[425785299,1781888303000,-547.88,0.00036821,30]
[425785309,1781888303000,-1013.87,0.00036821,30]
[425785373,1781888304000,-640.19,0.00036821,30]
[425785363,1781888304000,-565.87,0.00036821,30]
[425785361,1781888304000,-607.03,0.00036821,30]
[425785360,1781888304000,-1675.21,0.00036821,30]
[425785359,1781888304000,-1214.29,0.00036821,30]
[425785356,1781888304000,-1188.41,0.00036821,30]
[425785357,1781888304000,-710.03,0.00036821,30]
[425785358,1781888304000,-500.0,0.00036821,30]
[425785362,1781888304000,-507.45,0.00036821,2]
[425785354,1781888304000,-802.44,0.00036821,30]
[425785352,1781888304000,-515.79,0.00036821,30]
[425785372,1781888304000,-650.27,0.00036821,30]
[425785374,1781888304000,-652.73,0.00036821,30]
[425785365,1781888304000,-500.0,0.00036821,30]
[425785370,1781888304000,-2092.1,0.00036821,30]
[425785367,1781888304000,-853.91,0.00036821,30]
[425785366,1781888304000,-575.06,0.00036821,30]
[425785364,1781888304000,-607.04,0.00036821,30]
[425785371,1781888304000,-1444.74,0.00036821,30]
[425785376,1781888304000,-958.15,0.00036821,30]
[425785377,1781888304000,-621.71,0.00036821,30]
[425785375,1781888304000,-737.33,0.00036821,30]
[425785379,1781888304000,-575.14,0.00036821,30]
[425785355,1781888304000,-526.37,0.00036821,30]
[425785369,1781888304000,-985.23,0.00036821,30]
[425785353,1781888304000,-807.08,0.00036821,30]
[425785334,1781888304000,-649.08,0.00036821,30]
[425785348,1781888304000,-860.38,0.00036821,30]
[425785327,1781888304000,-2588.84,0.00036821,30]
[425785325,1781888304000,-662.63,0.00036821,30]
[425785326,1781888304000,-643.62,0.00036821,30]
[425785328,1781888304000,-947.68,0.00036821,30]
[425785331,1781888304000,-658.41,0.00036821,30]
[425785330,1781888304000,-970.43,0.00036821,30]
[425785329,1781888304000,-598.87,0.00036821,30]
[425785332,1781888304000,-1083.37,0.00036821,30]
[425785384,1781888304000,-757.69,0.00036821,30]
[425785333,1781888304000,-846.54,0.00036821,30]
[425785336,1781888304000,-1066.11,0.00036821,30]
[425785335,1781888304000,-650.2,0.00036821,30]
[425785337,1781888304000,-585.97,0.00036821,30]
[425785338,1781888304000,-846.43,0.00036821,30]
[425785350,1781888304000,-465.84586474,0.00036821,30]
[425785340,1781888304000,-678.01,0.00036821,30]
[425785339,1781888304000,-1580.21,0.00036821,30]
[425785342,1781888304000,-360.04,0.00036821,30]
[425785343,1781888304000,-734.22,0.00036821,30]
[425785341,1781888304000,-697.26,0.00036821,30]
[425785344,1781888304000,-651.01,0.00036821,30]
[425785345,1781888304000,-1586.38,0.00036821,30]
[425785349,1781888304000,-505.49,0.00036821,30]
[425785346,1781888304000,-755.8,0.00036821,30]
[425785347,1781888304000,-522.21,0.00036821,30]
[425785351,1781888304000,-512.48,0.00036821,30]
[425785385,1781888304000,-1265.07,0.00036821,30]
[425785368,1781888304000,-642.93848991,0.00036821,30]
[425785380,1781888304000,-721.82,0.00036821,30]
[425785411,1781888304000,-5781.35,0.00036821,30]
[425785413,1781888304000,-1286.36,0.00036821,30]
[425785415,1781888304000,-4625.81,0.00036821,30]
[425785417,1781888304000,-3037.54,0.00036821,30]
[425785414,1781888304000,-764.17,0.00036821,30]
[425785416,1781888304000,-1885.01,0.00036821,30]
[425785419,1781888304000,-1085.5,0.00036821,30]
[425785422,1781888304000,-770.28,0.00036821,30]
[425785420,1781888304000,-552.68,0.00036821,30]
[425785421,1781888304000,-914.03,0.00036821,30]
[425785423,1781888304000,-500.0,0.00036821,30]
[425785429,1781888304000,-917.69,0.00036821,30]
[425785424,1781888304000,-1108.92,0.00036821,30]
[425785425,1781888304000,-710.65,0.00036821,30]
[425785427,1781888304000,-1720.71,0.00036821,30]
[425785428,1781888304000,-1936.23,0.00036821,30]
[425785426,1781888304000,-3165.0,0.00036821,30]
[425785431,1781888304000,-651.48,0.00036821,30]
[425785437,1781888304000,-1013.9116,0.00036855,2]
[425785435,1781888304000,-158.43463363,0.00036832,2]
[425785430,1781888304000,-850.26,0.00036821,30]
[425785436,1781888304000,-267.21900315,0.0003685,7]
[425785432,1781888304000,-1131.94,0.00036821,30]
[425785434,1781888304000,-1000.78,0.00036821,30]
[425785383,1781888304000,-552.56,0.00036821,30]
[425785408,1781888304000,-5085.36,0.00036821,30]
[425785410,1781888304000,-1257.63,0.00036821,30]
[425785433,1781888304000,-1252.38,0.00036821,30]
[425785418,1781888304000,-924.86,0.00036821,30]
[425785412,1781888304000,-8051.7,0.00036821,30]
[425785378,1781888304000,-537.57,0.00036821,30]
[425785381,1781888304000,-1000.0,0.00036821,30]
[425785390,1781888304000,-1391.17,0.00036821,30]
[425785387,1781888304000,-510.64,0.00036821,30]
[425785386,1781888304000,-693.9,0.00036821,30]
[425785389,1781888304000,-1423.78,0.00036821,30]
[425785388,1781888304000,-2137.39,0.00036821,30]
[425785392,1781888304000,-592.13,0.00036821,30]
[425785391,1781888304000,-1656.0,0.00036821,30]
[425785393,1781888304000,-721.41,0.00036821,30]
[425785395,1781888304000,-446.8301239,0.00036821,30]
[425785394,1781888304000,-857.32,0.00036821,30]
[425785382,1781888304000,-1264.79,0.00036821,30]
[425785403,1781888304000,-631.67,0.00036821,30]
[425785396,1781888304000,-500.0,0.00036821,2]
[425785405,1781888304000,-562.71,0.00036821,30]
[425785406,1781888304000,-711.87,0.00036821,30]
[425785404,1781888304000,-711.69,0.00036821,30]
[425785402,1781888304000,-1427.66,0.00036821,30]
[425785409,1781888304000,-1877.0,0.00036821,2]
[425785400,1781888304000,-3646.26,0.00036821,30]
[425785399,1781888304000,-1123.62,0.00036821,30]
[425785398,1781888304000,-961.56,0.00036821,30]
[425785397,1781888304000,-534.92,0.00036821,30]
[425785401,1781888304000,-2000.0,0.00036821,4]
[425785407,1781888304000,-809.43,0.00036821,30]
[425785476,1781888305000,-1013.7489912,0.00036876,30]
[425785475,1781888305000,-578.13861378,0.00036876,30]
[425785485,1781888305000,-722.60733027,0.00036876,30]
[425785467,1781888305000,-537.97707999,0.00036876,30]
[425785464,1781888305000,-548.02007964,0.00036876,30]
[425785470,1781888305000,-594.20070775,0.00036876,30]
[425785468,1781888305000,-1145.40036865,0.00036876,30]
[425785473,1781888305000,-1013.88592103,0.00036876,30]
[425785474,1781888305000,-2492.41592199,0.00036876,30]
[425785472,1781888305000,-743.89502274,0.00036876,30]
[425785471,1781888305000,-780.9016828,0.00036876,30]
[425785479,1781888305000,-2528.16132353,0.00036876,30]
[425785478,1781888305000,-1109.74719496,0.00036876,30]
[425785481,1781888305000,-636.33518837,0.00036876,30]
[425785484,1781888305000,-628.27461691,0.00036876,30]
[425785483,1781888305000,-620.42142366,0.00036876,30]
[425785482,1781888305000,-1182.89328709,0.00036876,30]
[425785480,1781888305000,-695.46865022,0.00036876,30]
[425785487,1781888305000,-900.26009118,0.00036876,30]
[425785488,1781888305000,-636.57845506,0.00036876,30]
[425785486,1781888305000,-918.53862031,0.00036876,30]
[425785497,1781888305000,-846.63,0.00036876,30]
[425785490,1781888305000,-643.69883132,0.00036876,30]
[425785469,1781888305000,-634.98110431,0.00036876,30]
[425785477,1781888305000,-574.52251004,0.00036876,30]
[425785466,1781888305000,-664.81349436,0.00036876,30]
[425785450,1781888305000,-747.72689861,0.00036876,30]
[425785463,1781888305000,-544.30703246,0.00036876,30]
[425785491,1781888305000,-2588.92110271,0.00036876,30]
[425785438,1781888305000,-518719.31635308,0.00036875,60]
[425785439,1781888305000,-1356.9909429,0.00036876,30]
[425785440,1781888305000,-769.36472517,0.00036876,30]
[425785441,1781888305000,-544.18399955,0.00036876,30]
[425785442,1781888305000,-537.04,0.00036876,30]
[425785443,1781888305000,-508.94357555,0.00036876,30]
[425785444,1781888305000,-531.65714482,0.00036876,30]
[425785446,1781888305000,-1095.58817266,0.00036876,30]
[425785445,1781888305000,-578.47155679,0.00036876,30]
[425785447,1781888305000,-809.73673362,0.00036876,30]
[425785465,1781888305000,-1348.43535801,0.00036876,30]
[425785449,1781888305000,-580.66756514,0.00036876,30]
[425785448,1781888305000,-923.56462384,0.00036876,30]
[425785460,1781888305000,-507.74152189,0.00036876,30]
[425785461,1781888305000,-759.59822489,0.00036876,30]
[425785455,1781888305000,-517.37599252,0.00036876,30]
[425785452,1781888305000,-675.02982152,0.00036876,30]
[425785453,1781888305000,-588.80100321,0.00036876,30]
[425785456,1781888305000,-1338.65760832,0.00036876,30]
[425785459,1781888305000,-1286.32891889,0.00036876,30]
[425785457,1781888305000,-662.55994647,0.00036876,30]
[425785458,1781888305000,-833.59415973,0.00036876,30]
[425785462,1781888305000,-627.63927893,0.00036876,30]
[425785451,1781888305000,-1017.15028075,0.00036876,30]
[425785492,1781888305000,-947.78427494,0.00036876,30]
[425785454,1781888305000,-996.64804449,0.00036876,30]
[425785493,1781888305000,-598.8742261,0.00036876,30]
[425785524,1781888305000,-507.46614562,0.00036876,2]
[425785526,1781888305000,-607.12070635,0.00036876,30]
[425785529,1781888305000,-854.12272763,0.00036876,30]
[425785525,1781888305000,-566.00488592,0.00036876,30]
[425785527,1781888305000,-209.40863977,0.00036876,30]
[425785528,1781888305000,-575.29638519,0.00036876,30]
[425785530,1781888305000,-985.26054131,0.00036876,30]
[425785543,1781888305000,-1264.97004395,0.00036876,30]
[425785531,1781888305000,-2092.30417001,0.00036876,30]
[425785534,1781888305000,-640.40444076,0.00036876,30]
[425785532,1781888305000,-1444.75507885,0.00036876,30]
[425785535,1781888305000,-652.87235263,0.00036876,30]
[425785539,1781888305000,-537.8,0.00036876,30]
[425785537,1781888305000,-958.19001117,0.00036876,30]
[425785536,1781888305000,-737.53487866,0.00036876,30]
[425785541,1781888305000,-721.85535238,0.00036876,30]
[425785538,1781888305000,-621.85821366,0.00036876,30]
[425785540,1781888305000,-575.34735389,0.00036876,30]
[425785542,1781888305000,-1000.0,0.00036876,30]
[425785545,1781888305000,-757.85962233,0.00036876,30]
[425785544,1781888305000,-552.63780084,0.00036876,30]
[425785547,1781888305000,-693.91008576,0.00036876,30]
[425785548,1781888305000,-510.7909279,0.00036876,30]
[425785546,1781888305000,-1265.29137483,0.00036876,30]
[425785496,1781888305000,-1083.56500938,0.00036876,30]
[425785520,1781888305000,-205.38750263,0.00036876,30]
[425785522,1781888305000,-1675.36339191,0.00036876,30]
[425785533,1781888305000,-650.46200638,0.00036876,30]
[425785521,1781888305000,-1214.47408316,0.00036876,30]
[425785523,1781888305000,-607.13850438,0.00036876,30]
[425785489,1781888305000,-662.78865724,0.00036876,30]
[425785495,1781888305000,-658.59515945,0.00036876,30]
[425785507,1781888305000,-651.13665267,0.00036876,30]
[425785498,1781888305000,-649.3,0.00036876,30]
[425785499,1781888305000,-650.39982339,0.00036876,30]
[425785500,1781888305000,-1066.15307061,0.00036876,30]
[425785501,1781888305000,-586.08895594,0.00036876,30]
[425785502,1781888305000,-846.52865154,0.00036876,30]
[425785503,1781888305000,-1580.43172725,0.00036876,30]
[425785505,1781888305000,-697.49246758,0.00036876,30]
[425785506,1781888305000,-734.37762531,0.00036876,30]
[425785504,1781888305000,-678.03298276,0.00036876,30]
[425785494,1781888305000,-970.5620984,0.00036876,30]
[425785519,1781888305000,-710.1326463,0.00036876,30]
[425785509,1781888305000,-755.88323781,0.00036876,30]
[425785510,1781888305000,-522.23404795,0.00036876,30]
[425785517,1781888305000,-526.57,0.00036876,30]
[425785513,1781888305000,-512.55038636,0.00036876,30]
[425785518,1781888305000,-1188.42079166,0.00036876,30]
[425785511,1781888305000,-860.53339109,0.00036876,30]
[425785515,1781888305000,-807.28627958,0.00036876,30]
[425785508,1781888305000,-1586.47319598,0.00036876,30]
[425785512,1781888305000,-505.71663389,0.00036876,30]
[425785516,1781888305000,-802.46687997,0.00036876,30]
[425785514,1781888305000,-515.86411139,0.00036876,30]
[425785586,1781888306000,-3165.15828009,0.00036876,30]
[425785579,1781888306000,-1085.73408962,0.00036876,30]
[425785583,1781888306000,-206.57506956,0.00036876,30]
[425785584,1781888306000,-1109.11107458,0.00036876,30]
[425785588,1781888306000,-1936.39517073,0.00036876,30]
[425785589,1781888306000,-850.34706145,0.00036876,30]
[425785581,1781888306000,-914.03124248,0.00036876,30]
[425785580,1781888306000,-552.69,0.00036876,30]
[425785582,1781888306000,-770.46429357,0.00036876,30]
[425785578,1781888306000,-925.08356836,0.00036876,30]
[425785585,1781888306000,-710.7330723,0.00036876,30]
[425785587,1781888306000,-1720.72098349,0.00036876,30]
[425785590,1781888306000,-917.88977683,0.00036876,30]
[425785597,1781888306000,-1113.94,0.000369,90]
[425785592,1781888306000,-1132.09488305,0.00036876,30]
[425785591,1781888306000,-651.60813047,0.00036876,30]
[425785594,1781888306000,-1000.9086818,0.00036876,30]
[425785595,1781888306000,-461.14,0.000369,90]
[425785596,1781888306000,-1062.3,0.000369,120]
[425785599,1781888306000,-316.0,0.000369,2]
[425785598,1781888306000,-1000.0,0.000369,2]
[425785600,1781888306000,-201.0,0.000369,2]
[425785601,1781888306000,-310.0,0.000369,2]
[425785602,1781888306000,-150.0,0.00036929,120]
[425785606,1781888306000,-2000.0,0.00036931,4]
[425785593,1781888306000,-1252.39457956,0.00036876,30]
[425785574,1781888306000,-764.321096,0.00036876,30]
[425785552,1781888306000,-1656.23473329,0.00036876,30]
[425785573,1781888306000,-1286.54803722,0.00036876,30]
[425785603,1781888306000,-300.0,0.0003693,2]
[425785553,1781888306000,-592.2170007,0.00036876,30]
[425785549,1781888306000,-2137.39055763,0.00036876,30]
[425785550,1781888306000,-1423.96489043,0.00036876,30]
[425785551,1781888306000,-1391.34684519,0.00036876,30]
[425785555,1781888306000,-721.61542959,0.00036876,30]
[425785565,1781888306000,-562.87928395,0.00036876,30]
[425785566,1781888306000,-712.08765326,0.00036876,30]
[425785556,1781888306000,-500.0,0.00036876,2]
[425785557,1781888306000,-535.02310637,0.00036876,30]
[425785561,1781888306000,-2000.0,0.00036876,4]
[425785560,1781888306000,-3646.3559793,0.00036876,30]
[425785568,1781888306000,-809.61232221,0.00036876,30]
[425785562,1781888306000,-1427.78212335,0.00036876,30]
[425785563,1781888306000,-631.88929811,0.00036876,30]
[425785554,1781888306000,-857.35898045,0.00036876,30]
[425785564,1781888306000,-711.72223463,0.00036876,30]
[425785558,1781888306000,-961.71604114,0.00036876,30]
[425785567,1781888306000,-5085.4247404,0.00036876,30]
[425785571,1781888306000,-5781.58290948,0.00036876,30]
[425785569,1781888306000,-1877.12578414,0.00036876,2]
[425785576,1781888306000,-1885.08207349,0.00036876,30]
[425785577,1781888306000,-3037.69664192,0.00036876,30]
[425785570,1781888306000,-1257.78953832,0.00036876,30]
[425785572,1781888306000,-8051.7879691,0.00036876,30]
[425785575,1781888306000,-4626.01564431,0.00036876,30]
[425785559,1781888306000,-1123.67,0.00036876,30]
[425785612,1781888306000,-1000.0,0.00036959,120]
[425785605,1781888306000,-500.0,0.00036931,2]
[425785658,1781888306000,-100000.0,0.00037,30]
[425785646,1781888306000,-874.0,0.00037,30]
[425785641,1781888306000,-50000.0,0.00036999,27]
[425785640,1781888306000,-50000.0,0.00036999,26]
[425785637,1781888306000,-50000.0,0.00036999,23]
[425785644,1781888306000,-874.0,0.00037,30]
[425785636,1781888306000,-50000.0,0.00036999,22]
[425785638,1781888306000,-50000.0,0.00036999,24]
[425785642,1781888306000,-50000.0,0.00036999,28]
[425785648,1781888306000,-604.04346496,0.00037,30]
[425785647,1781888306000,-874.0,0.00037,30]
[425785649,1781888306000,-390.0,0.00037,30]
[425785650,1781888306000,-2000.0,0.00037,37]
[425785643,1781888306000,-50000.0,0.00036999,30]
[425785651,1781888306000,-5000.0,0.00037,7]
[425785654,1781888306000,-30536.46701817,0.00037,7]
[425785656,1781888306000,-4990.79007163,0.00037,120]
[425785653,1781888306000,-267.97259424,0.00037,20]
[425785657,1781888306000,-13735.02361226,0.00037,120]
[425785655,1781888306000,-701.05823868,0.00037,120]
[425785659,1781888306000,-100000.0,0.00037,14]
[425785661,1781888306000,-350.0,0.00037,15]
[425785662,1781888306000,-250.0,0.00037,7]
[425785664,1781888306000,-11002.87,0.00037,7]
[425785663,1781888306000,-191.9,0.00037,30]
[425785604,1781888306000,-1000.0,0.00036931,30]
[425785660,1781888306000,-151.0,0.00037,120]
[425785652,1781888306000,-62286.41968578,0.00037,10]
[425785645,1781888306000,-874.0,0.00037,30]
[425785639,1781888306000,-50000.0,0.00036999,25]
[425785635,1781888306000,-50000.0,0.00036999,21]
[425785608,1781888306000,-1000.0,0.00036959,120]
[425785607,1781888306000,-1000.0,0.00036959,120]
[425785610,1781888306000,-1000.0,0.00036959,120]
[425785609,1781888306000,-1000.0,0.00036959,120]
[425785611,1781888306000,-1000.0,0.00036959,120]
[425785613,1781888306000,-1000.0,0.00036959,120]
[425785614,1781888306000,-1000.0,0.00036959,120]
[425785615,1781888306000,-1000.0,0.00036959,120]
[425785633,1781888306000,-203.467,0.00036998,2]
[425785624,1781888306000,-1478.0,0.0003696,10]
[425785617,1781888306000,-1000.0,0.00036959,120]
[425785618,1781888306000,-1000.0,0.00036959,120]
[425785621,1781888306000,-1000.0,0.00036959,120]
[425785623,1781888306000,-1783.0,0.00036959,120]
[425785616,1781888306000,-1000.0,0.00036959,120]
[425785619,1781888306000,-1000.0,0.00036959,120]
[425785622,1781888306000,-1000.0,0.00036959,120]
[425785626,1781888306000,-350.0,0.00036977,2]
[425785625,1781888306000,-268.09026268,0.0003697,7]
[425785631,1781888306000,-150.0,0.00036987,2]
[425785632,1781888306000,-25000.0,0.00036991,10]
[425785627,1781888306000,-500.0,0.00036986,120]
[425785630,1781888306000,-2000.0,0.00036986,4]
[425785629,1781888306000,-500.0,0.00036986,2]
[425785628,1781888306000,-1000.0,0.00036986,30]
[425785634,1781888306000,-50000.0,0.00036999,20]
[425785620,1781888306000,-1000.0,0.00036959,120]
[425785699,1781888307000,-1000.0,0.00037074,2]
[425785703,1781888307000,-1000.0,0.00037074,2]
[425785700,1781888307000,-1000.0,0.00037074,2]
[425785701,1781888307000,-1000.0,0.00037074,2]
[425785698,1781888307000,-1000.0,0.00037074,2]
[425785697,1781888307000,-1000.0,0.00037074,2]
[425785708,1781888307000,-1000.0,0.00037074,2]
[425785707,1781888307000,-643.0,0.00037074,2]
[425785706,1781888307000,-1000.0,0.00037074,2]
[425785702,1781888307000,-1000.0,0.00037074,2]
[425785705,1781888307000,-1000.0,0.00037074,2]
[425785696,1781888307000,-1000.0,0.00037074,2]
[425785704,1781888307000,-1000.0,0.00037074,2]
[425785723,1781888307000,-643.94,0.00037108,2]
[425785711,1781888307000,-1000.0,0.00037074,2]
[425785710,1781888307000,-1000.0,0.00037074,2]
[425785714,1781888307000,-152.606663,0.0003708,120]
[425785713,1781888307000,-1000.0,0.00037074,2]
[425785715,1781888307000,-268.96436293,0.0003709,7]
[425785718,1781888307000,-2000.0,0.00037095,4]
[425785720,1781888307000,-644.26,0.00037105,2]
[425785719,1781888307000,-108541.61,0.000371,2]
[425785717,1781888307000,-500.0,0.00037095,2]
[425785712,1781888307000,-1000.0,0.00037074,2]
[425785722,1781888307000,-158.43463363,0.00037105,2]
[425785685,1781888307000,-1000.0,0.00037074,2]
[425785709,1781888307000,-1000.0,0.00037074,2]
[425785693,1781888307000,-1000.0,0.00037074,2]
[425785667,1781888307000,-18049.04690521,0.00037,120]
[425785695,1781888307000,-1000.0,0.00037074,2]
[425785668,1781888307000,-25000.0,0.00037,10]
[425785666,1781888307000,-10000.0,0.00037,7]
[425785670,1781888307000,-10067.0,0.00037,117]
[425785665,1781888307000,-10000.0,0.00037,7]
[425785671,1781888307000,-1644.5174283,0.00037,2]
[425785669,1781888307000,-1000.0,0.00037,120]
[425785672,1781888307000,-21111.93171202,0.00037,10]
[425785673,1781888307000,-456072.0,0.00037,30]
[425785681,1781888307000,-500.0,0.00037041,2]
[425785682,1781888307000,-2000.0,0.00037041,4]
[425785683,1781888307000,-150.0,0.00037071,120]
[425785676,1781888307000,-849.0,0.00037,30]
[425785692,1781888307000,-1000.0,0.00037074,2]
[425785675,1781888307000,-1338.06049152,0.00037,2]
[425785677,1781888307000,-162.0,0.00037,120]
[425785680,1781888307000,-1000.0,0.00037041,30]
[425785678,1781888307000,-5000.0,0.00037,2]
[425785679,1781888307000,-186.0,0.00037,30]
[425785684,1781888307000,-1000.0,0.00037074,2]
[425785687,1781888307000,-1000.0,0.00037074,2]
[425785691,1781888307000,-1000.0,0.00037074,2]
[425785686,1781888307000,-1000.0,0.00037074,2]
[425785690,1781888307000,-1000.0,0.00037074,2]
[425785688,1781888307000,-1000.0,0.00037074,2]
[425785689,1781888307000,-1000.0,0.00037074,2]
[425785694,1781888307000,-1000.0,0.00037074,2]
[425785674,1781888307000,-25000.0,0.00037,10]
[425785724,1781888307000,-972.4798767,0.00037134,2]
[425785716,1781888307000,-1000.0,0.00037095,30]
[425785727,1781888307000,-1000.0,0.0003715,30]
[425785767,1781888307000,-500.0,0.00037178,2]
[425785756,1781888307000,-500.0,0.00037178,2]
[425785763,1781888307000,-500.0,0.00037178,2]
[425785761,1781888307000,-500.0,0.00037178,2]
[425785764,1781888307000,-500.0,0.00037178,2]
[425785760,1781888307000,-500.0,0.00037178,2]
[425785759,1781888307000,-500.0,0.00037178,2]
[425785762,1781888307000,-500.0,0.00037178,2]
[425785765,1781888307000,-500.0,0.00037178,2]
[425785766,1781888307000,-500.0,0.00037178,2]
[425785758,1781888307000,-500.0,0.00037178,2]
[425785769,1781888307000,-500.0,0.00037178,2]
[425785771,1781888307000,-500.0,0.00037178,2]
[425785768,1781888307000,-500.0,0.00037178,2]
[425785770,1781888307000,-500.0,0.00037178,2]
[425785774,1781888307000,-500.0,0.00037178,2]
[425785772,1781888307000,-500.0,0.00037178,2]
[425785776,1781888307000,-500.0,0.00037178,2]
[425785775,1781888307000,-500.0,0.00037178,2]
[425785773,1781888307000,-500.0,0.00037178,2]
[425785777,1781888307000,-500.0,0.00037178,2]
[425785779,1781888307000,-500.0,0.00037178,2]
[425785781,1781888307000,-500.0,0.00037178,2]
[425785782,1781888307000,-500.0,0.00037178,2]
[425785783,1781888307000,-500.0,0.00037178,2]
[425785780,1781888307000,-500.0,0.00037178,2]
[425785721,1781888307000,-186.13,0.00037105,2]
[425785757,1781888307000,-500.0,0.00037178,2]
[425785754,1781888307000,-500.0,0.00037178,2]
[425785778,1781888307000,-500.0,0.00037178,2]
[425785751,1781888307000,-500.0,0.00037178,2]
[425785725,1781888307000,-500.0,0.0003715,2]
[425785746,1781888307000,-500.0,0.00037178,2]
[425785726,1781888307000,-500.0,0.0003715,2]
[425785729,1781888307000,-2000.0,0.0003715,4]
[425785728,1781888307000,-500.0,0.0003715,2]
[425785730,1781888307000,-535.54,0.00037151,60]
[425785732,1781888307000,-330.937332,0.00037157,2]
[425785734,1781888307000,-1054.96788386,0.00037164,20]
[425785733,1781888307000,-476.659381,0.00037157,2]
[425785740,1781888307000,-1080.2703505,0.00037164,20]
[425785737,1781888307000,-1001.51664303,0.00037164,20]
[425785738,1781888307000,-1032.2784311,0.00037164,20]
[425785742,1781888307000,-1048.67832296,0.00037164,20]
[425785731,1781888307000,-432.96511,0.00037157,2]
[425785743,1781888307000,-1006.57071578,0.00037164,20]
[425785749,1781888307000,-500.0,0.00037178,2]
[425785735,1781888307000,-1127.76870365,0.00037164,20]
[425785752,1781888307000,-500.0,0.00037178,2]
[425785748,1781888307000,-500.0,0.00037178,2]
[425785747,1781888307000,-500.0,0.00037178,2]
[425785753,1781888307000,-500.0,0.00037178,2]
[425785750,1781888307000,-500.0,0.00037178,2]
[425785755,1781888307000,-500.0,0.00037178,2]
[425785736,1781888307000,-1133.45006215,0.00037164,20]
[425785741,1781888307000,-1065.09786968,0.00037164,20]
[425785739,1781888307000,-1075.95403077,0.00037164,20]
[425785745,1781888307000,-266.0,0.00037171,2]
[425785744,1781888307000,-1406.86528503,0.00037164,20]